fUST/lending_fUST_20251205
["ID","MTS","AMOUNT","RATE_DAILY","PERIOD"]
[396258444,1764895843329,-596.5349842,0.00027123,2]
[396258445,1764895843340,-602.4989963,0.00027123,2]
[396258446,1764895843351,-200.0,0.00027193,120]
[396258447,1764895843361,-500.0,0.000273,10]
[396258448,1764895843373,-500.0,0.000273,10]
[396258449,1764895843384,-154.0,0.000273,21]
[396258450,1764895843393,-5594.55521478,0.00027354,2]
[396258451,1764895843403,-151.0,0.00027396,7]
[396258452,1764895843414,-151.0,0.00027396,7]
[396258453,1764895843424,-151.0,0.00027396,7]
[396258454,1764895843435,-408.940589,0.00027396,7]
[396258455,1764895843453,-151.0,0.00027396,7]
[396258456,1764895843473,-780.112812,0.00027396,2]
[396258457,1764895843490,-408.940589,0.00027396,7]
[396258458,1764895843504,-780.112812,0.00027396,2]
[396258459,1764895843516,-408.940589,0.00027396,7]
[396258460,1764895843527,-780.112812,0.00027396,2]
[396258461,1764895843538,-408.940589,0.00027396,7]
[396258462,1764895843549,-780.112812,0.00027396,2]
[396258463,1764895843561,-151.0,0.00027396,7]
[396258464,1764895843573,-156.35749515,0.00027397,2]
[396258465,1764895843585,-151.0,0.00027397,7]
[396258466,1764895843597,-152.488202,0.00027397,7]
[396258467,1764895843610,-152.69273,0.00027397,7]
[396258468,1764895843620,-265.03278927,0.00027397,5]
[396258469,1764895843633,-500.0,0.00027397,120]
[396258470,1764895843648,-650.0,0.00027397,5]
[396258471,1764895843658,-500.0,0.00027397,5]
[396258472,1764895843671,-150.0,0.00027397,5]
[396258473,1764895843682,-150.0,0.00027397,5]
[396258474,1764895843694,-150.0,0.00027397,5]
[396258475,1764895843707,-150.0,0.00027397,5]
[396258476,1764895843719,-200.0,0.00027425,120]
[396258477,1764895843732,-151.03033534,0.00027534,2]
[396258478,1764895843745,-151.0,0.00027534,2]
[396258479,1764895843757,-151.0,0.00027534,2]
[396258480,1764895843768,-151.0,0.00027534,2]
[396258481,1764895843781,-205.45300964,0.00027534,2]
[396258482,1764895843792,-500.0,0.00027534,2]
[396258483,1764895843803,-500.0,0.00027534,2]
[396258484,1764895843814,-151.0,0.00027534,2]
[396258485,1764895843825,-500.0,0.00027534,2]
[396258486,1764895843836,-151.0,0.00027534,2]
[396258487,1764895843846,-500.0,0.00027534,2]
[396258488,1764895843856,-151.0,0.00027534,2]
[396258489,1764895843867,-151.0,0.00027534,2]
[396258490,1764895843878,-173.63747113,0.00027534,2]
[396258491,1764895843889,-151.0,0.00027534,7]
[396258492,1764895843901,-151.0,0.00027534,7]
[396258493,1764895843912,-151.0,0.00027534,7]
[396258494,1764895843922,-151.0,0.00027534,7]
[396258495,1764895843934,-287.176775,0.00027534,7]
[396258496,1764895843946,-287.176775,0.00027534,7]
[396258497,1764895843957,-287.176775,0.00027534,7]
[396258498,1764895843968,-287.176775,0.00027534,7]
[396258499,1764895843979,-6164.894384,0.00027534,7]
[396258500,1764895843994,-6164.894384,0.00027534,7]
[396258501,1764895844004,-6164.894384,0.00027534,7]
[396258502,1764895844017,-6164.894384,0.00027534,7]
[396258503,1764895844029,-151.0,0.00027534,7]
[396258504,1764895844041,-152.068639,0.00027534,7]
[396258505,1764895844050,-151.0,0.00027534,7]
[396258506,1764895844061,-155.467001,0.00027534,7]
[396258507,1764895844073,-151.0,0.00027534,7]
[396258508,1764895844085,-151.0,0.00027534,2]
[396258509,1764895844096,-151.0,0.00027534,7]
[396258510,1764895844107,-151.0,0.00027534,7]
[396258511,1764895844117,-151.0,0.00027534,2]
[396258512,1764895844128,-151.0,0.00027534,2]
[396258513,1764895844138,-500.0,0.00027534,2]
[396258514,1764895844149,-151.0,0.00027534,7]
[396258515,1764895844160,-151.0,0.00027534,7]
[396258516,1764895844171,-500.0,0.000276,2]
[396258517,1764895844183,-500.0,0.000276,2]
[396258518,1764895844194,-500.0,0.000276,2]
[396258519,1764895844205,-500.0,0.000276,2]
[396258520,1764895844215,-500.0,0.000276,2]
[396258521,1764895844225,-500.0,0.000276,2]
[396258522,1764895844236,-500.0,0.000276,2]
[396258523,1764895844247,-500.0,0.000276,2]
[396258524,1764895844259,-500.0,0.000276,2]
[396258525,1764895844271,-376.0,0.000276,2]
[396258526,1764895844283,-500.0,0.000276,2]
[396258527,1764895844293,-500.0,0.000276,2]
[396258528,1764895844306,-500.0,0.000276,2]
[396258529,1764895844317,-500.0,0.000276,2]
[396258530,1764895844329,-500.0,0.000276,2]
[396258531,1764895844339,-500.0,0.000276,2]
[396258532,1764895844350,-500.0,0.000276,2]
[396258533,1764895844362,-351.76666096,0.000276,2]
[396258534,1764895844374,-151.0,0.000276,7]
[396258535,1764895844385,-151.0,0.000276,7]
[396258536,1764895844396,-151.0,0.000276,7]
[396258537,1764895844406,-151.0,0.000276,7]
[396258538,1764895844417,-151.0,0.000276,7]
[396258540,1764895844428,-189.82391,0.000276,7]
[396258542,1764895844440,-189.82391,0.000276,7]
[396258543,1764895844451,-189.82391,0.000276,7]
[396258544,1764895844462,-189.82391,0.000276,7]
[396258545,1764895844474,-151.0,0.000276,7]
[396258546,1764895844485,-151.0,0.000276,7]
[396258548,1764895844496,-151.0,0.000276,7]
[396258550,1764895844508,-169.0,0.00027616,14]
[396258551,1764895844518,-151.0,0.00027671,2]
[396258552,1764895844528,-151.0,0.00027671,2]
[396258553,1764895844538,-155.52482779,0.00027671,2]
[396258554,1764895844548,-500.0,0.00027671,2]
[396258555,1764895844558,-500.0,0.00027671,2]
[396258556,1764895844569,-500.0,0.00027671,2]
[396258557,1764895844580,-151.0,0.00027671,2]
[396258558,1764895844591,-500.0,0.00027671,2]
[396258559,1764895844603,-194.33665849,0.00027671,2]
[396258561,1764895844614,-151.0,0.00027671,2]
[396258562,1764895844625,-151.0,0.00027671,2]
[396258563,1764895844637,-240.25386312,0.00027671,2]
[396258564,1764895844648,-500.0,0.00027671,2]
[396258565,1764895844660,-1000.0,0.00027777,5]
[396258566,1764895844670,-151.0,0.00027808,2]
[396258567,1764895844680,-151.0,0.00027808,2]
[396258568,1764895844690,-500.0,0.00027808,2]
[396258569,1764895844701,-500.0,0.00027808,2]
[396258570,1764895844711,-500.0,0.00027808,2]
[396258571,1764895844722,-283.99019839,0.00027808,2]
[396258574,1764895844733,-351.34211215,0.00027808,2]
[396258575,1764895844743,-204.26607949,0.00027808,2]
[396258576,1764895844753,-151.0,0.00027808,2]
[396258577,1764895844765,-500.0,0.00027808,2]
[396258578,1764895844776,-200.0,0.00027853,120]
[396258579,1764895844786,-200.0,0.00027941,120]
[396258580,1764895844796,-151.0,0.00027945,2]
[396258581,1764895844808,-500.0,0.00027945,2]
[396258582,1764895844819,-500.0,0.00027945,2]
[396258583,1764895844831,-500.0,0.00027945,2]
[396258584,1764895844841,-237.75767703,0.00027945,2]
[396258585,1764895844852,-500.0,0.00027945,2]
[396258586,1764895844862,-151.0,0.00027945,7]
[396258587,1764895844872,-151.0,0.00027945,7]
[396258588,1764895844882,-151.0,0.00027945,7]
[396258589,1764895844895,-159.788754,0.00027945,7]
[396258590,1764895844906,-159.788754,0.00027945,7]
[396258591,1764895844917,-159.788754,0.00027945,7]
[396258592,1764895844928,-159.788754,0.00027945,7]
[396258593,1764895844939,-151.0,0.00027945,7]
[396258594,1764895844950,-1000.0,0.00027945,5]
[396258595,1764895844961,-250.0,0.00027945,5]
[396258596,1764895844974,-750.0,0.00027945,5]
[396258597,1764895844984,-250.0,0.00027945,5]
[396258598,1764895844995,-250.0,0.00027945,5]
[396258599,1764895845007,-596.5349842,0.00027945,30]
[396258600,1764895845018,-596.5349842,0.00027945,30]
[396258601,1764895845027,-596.5349842,0.00027945,30]
[396258602,1764895845037,-596.5349842,0.00027945,30]
[396258603,1764895845046,-596.5349842,0.00027945,30]
[396258604,1764895845056,-596.5349842,0.00027945,30]
[396258605,1764895845065,-596.5349842,0.00027945,30]
[396258606,1764895845075,-596.5349842,0.00027945,30]
[396258607,1764895845084,-596.5349842,0.00027945,30]
[396258608,1764895845093,-596.5349842,0.00027945,30]
[396258609,1764895845102,-596.5349842,0.00027945,30]
[396258610,1764895845111,-596.5349842,0.00027945,30]
[396258611,1764895845121,-596.5349842,0.00027945,30]
[396258612,1764895845130,-596.5349842,0.00027945,30]
[396258613,1764895845139,-832.7244931,0.00027945,30]
[396258614,1764895845148,-596.3744676,0.00027945,30]
[396258615,1764895845158,-15281.70776802,0.00028,2]
[396258616,1764895845168,-1999.999999,0.00028,2]
[396258617,1764895845177,-289.97,0.00028,7]
[396258618,1764895845187,-90040.91,0.00028,2]
[396258619,1764895845196,-2000.0,0.00028,2]
[396258620,1764895845205,-156.64342184,0.00028082,2]
[396258621,1764895845215,-500.0,0.00028082,2]
[396258622,1764895845224,-500.0,0.00028082,2]
[396258623,1764895845233,-500.0,0.00028082,2]
[396258624,1764895845243,-500.0,0.00028082,2]
[396258625,1764895845253,-415.56211074,0.00028097,2]
[396258626,1764895845270,-500.0,0.00028148,14]
[396258627,1764895845280,-200.0,0.00028185,120]
[396258628,1764895845289,-500.0,0.00028219,2]
[396258629,1764895845299,-160.01463511,0.00028219,2]
[396258630,1764895845309,-500.0,0.00028219,2]
[396258631,1764895845318,-250.0,0.00028219,5]
[396258632,1764895845329,-320.1,0.000283,7]
[396258633,1764895845340,-2000.0,0.000283,2]
[396258634,1764895845350,-200.0,0.00028335,120]
[396258635,1764895845359,-200.0,0.00028339,120]
[396258636,1764895845369,-500.0,0.00028356,2]
[396258637,1764895845379,-500.0,0.00028356,2]
[396258638,1764895845390,-850.75,0.000284,2]
[396258639,1764895845399,-151.0,0.00028483,7]
[396258640,1764895845409,-500.0,0.00028493,2]
[396258641,1764895845420,-500.0,0.00028493,2]
[396258642,1764895845429,-717.5400039,0.00028493,5]
[396258643,1764895845438,-831.15116435,0.00028493,5]
[396258644,1764895845447,-350.0,0.00028493,5]
[396258645,1764895845457,-350.0,0.00028493,5]
[396258646,1764895845466,-350.0,0.00028493,5]
[396258647,1764895845475,-296827.7182058,0.000285,7]
[396258648,1764895845485,-151.0,0.000285,7]
[396258649,1764895845495,-151.0,0.000285,7]
[396258650,1764895845505,-151.0,0.000285,7]
[396258651,1764895845514,-151.0,0.000285,7]
[396258652,1764895845523,-408.940589,0.000285,7]
[396258653,1764895845533,-151.0,0.000285,7]
[396258654,1764895845543,-780.112812,0.000285,2]
[396258655,1764895845552,-408.940589,0.000285,7]
[396258656,1764895845561,-780.112812,0.000285,2]
[396258657,1764895845571,-408.940589,0.000285,7]
[396258658,1764895845581,-780.112812,0.000285,2]
[396258659,1764895845590,-408.940589,0.000285,7]
[396258660,1764895845600,-780.112812,0.000285,2]
[396258661,1764895845609,-151.0,0.000285,7]
[396258662,1764895845618,-151.0,0.000285,7]
[396258663,1764895845628,-151.0,0.000285,7]
[396258664,1764895845637,-159.788754,0.000285,7]
[396258665,1764895845646,-159.788754,0.000285,7]
[396258666,1764895845655,-159.788754,0.000285,7]
[396258667,1764895845665,-159.788754,0.000285,7]
[396258668,1764895845674,-151.0,0.000285,7]
[396258669,1764895845683,-151.0,0.000285,7]
[396258670,1764895845692,-169.223134,0.000285,7]
[396258671,1764895845701,-153.20438,0.000285,7]
[396258672,1764895845710,-151.0,0.000285,7]
[396258673,1764895845720,-151.0,0.000285,7]
[396258674,1764895845729,-189.82391,0.000285,7]
[396258675,1764895845739,-189.82391,0.000285,7]
[396258676,1764895845750,-189.82391,0.000285,7]
[396258677,1764895845760,-189.82391,0.000285,7]
[396258678,1764895845769,-151.0,0.000285,7]
[396258679,1764895845779,-151.0,0.000285,7]
[396258680,1764895845788,-183.919965,0.000285,7]
[396258681,1764895845796,-151.0,0.000285,7]
[396258682,1764895845805,-151.0,0.000285,7]
[396258683,1764895845814,-151.0,0.000285,7]
[396258684,1764895845824,-245.236171,0.000285,7]
[396258685,1764895845833,-287.176775,0.000285,7]
[396258686,1764895845842,-287.176775,0.000285,7]
[396258687,1764895845851,-287.176775,0.000285,7]
[396258688,1764895845860,-287.176775,0.000285,7]
[396258689,1764895845869,-6164.894384,0.000285,7]
[396258690,1764895845878,-6164.894384,0.000285,7]
[396258691,1764895845887,-6164.894384,0.000285,7]
[396258692,1764895845897,-6164.894384,0.000285,7]
[396258693,1764895845908,-151.0,0.000285,7]
[396258694,1764895845917,-152.467748,0.000285,7]
[396258695,1764895845926,-151.0,0.000285,7]
[396258696,1764895845936,-151.0,0.000285,7]
[396258697,1764895845946,-151.0,0.000285,7]
[396258698,1764895845956,-151.0,0.000285,7]
[396258699,1764895845965,-2000.0,0.000286,2]
[396258700,1764895845976,-500.0,0.0002863,2]
[396258701,1764895845985,-500.0,0.0002863,2]
[396258702,1764895845995,-200.0,0.0002867,120]
[396258703,1764895846003,-5594.55521478,0.00028681,2]
[396258704,1764895846012,-314.75,0.000287,14]
[396258705,1764895846021,-4000.0,0.0002876,5]
[396258706,1764895846264,-26801.99314955,0.0002876,2]
[396258707,1764895846274,-500.0,0.00028767,2]
[396258708,1764895846284,-500.0,0.00028767,2]
[396258709,1764895846293,-171.58346107,0.000288,7]
[396258710,1764895846303,-2000.0,0.000288,2]
[396258711,1764895846312,-200.0,0.00028839,120]
[396258712,1764895846323,-500.0,0.00028904,2]
[396258713,1764895846332,-500.0,0.00028904,2]
[396258714,1764895846342,-200.0,0.00028974,120]
[396258715,1764895846352,-151.0,0.0002899,7]
[396258716,1764895846362,-169.0,0.00028997,14]
[396258717,1764895846372,-887.88344411,0.00029,2]
[396258718,1764895846381,-507.43734952,0.00029,7]
[396258719,1764895846391,-2397.80310002,0.00029,10]
[396258720,1764895846401,-399.12955785,0.00029,30]
[396258721,1764895846411,-399.12955785,0.00029,7]
[396258722,1764895846421,-1148.1861355,0.00029,2]
[396258723,1764895846431,-2508.006848,0.00029,2]
[396258724,1764895846441,-500.0,0.00029041,2]
[396258725,1764895846451,-500.0,0.00029041,2]
[396258726,1764895846461,-450.0,0.00029041,5]
[396258727,1764895846472,-450.0,0.00029041,5]
[396258728,1764895846481,-450.0,0.00029041,5]
[396258729,1764895846490,-350.0,0.00029041,5]
[396258730,1764895846499,-200.0,0.00029071,120]
[396258731,1764895846508,-2000.0,0.000291,2]
[396258732,1764895846517,-500.0,0.00029178,2]
[396258733,1764895846526,-500.0,0.00029178,2]
[396258734,1764895846535,-27946.20861683,0.000293,2]
[396258737,1764895847676,-51.00060681,0.00025017,15]
[396258770,1764896418822,-300.0,0.00012167,2]
[396258771,1764896418848,-250.0,0.00012167,2]
[396258772,1764896418873,-231.56874513,0.00012168,2]
[396258773,1764896418897,-500.0,0.00012168,2]
[396258774,1764896418920,-250.62820312,0.00012168,2]
[396258775,1764896418944,-500.0,0.00012168,2]
[396258776,1764896418967,-213.81033717,0.00012168,2]
[396258777,1764896418991,-404.2850252,0.00012168,2]
[396258778,1764896419017,-349.85891994,0.00012168,2]
[396258779,1764896419041,-150.0,0.00012169,2]
[396258780,1764896419074,-96849.84876944,0.00012169,2]
[396258781,1764896444614,-717.01330543,0.00012047,2]
[396258782,1764896444641,-99282.98669457,0.00012169,2]
[396258783,1764896463607,-100000.0,0.00012169,2]
[396258784,1764896473003,-100000.0,0.00012169,2]
[396258785,1764896481770,-100000.0,0.00012169,2]
[396258786,1764896494264,-427.10903983,0.00012047,2]
[396258787,1764896494291,-99572.89096017,0.00012169,2]
[396258788,1764896495406,-100000.0,0.00012169,2]
[396258789,1764896509333,-100000.0,0.00012169,2]
[396258790,1764896526956,-300.0,0.00012168,2]
[396258791,1764896526983,-369.78424183,0.00012169,2]
[396258792,1764896529334,-341.34576541,0.00012169,2]
[396258793,1764896532239,-313.34086356,0.00012169,2]
[396258794,1764896535512,-732.79246821,0.00012169,2]
[396258795,1764896538073,-213.49828434,0.00012169,2]
[396258796,1764896540068,-250.1735829,0.00012169,2]
[396258797,1764896542892,-308.973905,0.00012169,2]
[396258798,1764896545143,-305.23108715,0.00012169,2]
[396258799,1764896547576,-531.6624339,0.00012169,2]
[396258800,1764896548733,-245.02324028,0.00012169,2]
[396258801,1764896550319,-190.57275128,0.00012169,2]
[396258802,1764896552324,-164.53804103,0.00012169,2]
[396258803,1764896554533,-354.55355527,0.00012169,2]
[396258804,1764896556767,-268.9381939,0.00012169,2]
[396258805,1764896560607,-164.7539679,0.00012169,2]
[396258806,1764896565299,-844.19433703,0.00012169,2]
[396258807,1764896567873,-395.88862555,0.00012169,2]
[396258808,1764896569914,-396.94592762,0.00012169,2]
[396258809,1764896571165,-296.22991002,0.00012169,2]
[396258810,1764896572661,-202.8023932,0.00012169,2]
[396258811,1764896574919,-218.60633673,0.00012169,2]
[396258812,1764896576674,-258.91774045,0.00012047,2]
[396258813,1764896579508,-328.17555533,0.00012047,2]
[396258814,1764896581622,-261.65396971,0.00012047,2]
[396258815,1764896585375,-238.60572405,0.00012047,2]
[396258816,1764896587547,-412.69492243,0.00012047,2]
[396258817,1764896592075,-511.30343862,0.00012047,2]
[396258818,1764896593421,-124.70984283,0.00012047,2]
[396258819,1764896593447,-66.69051915,0.00012169,2]
[396258820,1764896595436,-194.91450138,0.00012169,2]
[396258821,1764896598216,-545.40940357,0.00012047,2]
[396258822,1764896599718,-301.75339797,0.00012047,2]
[396258823,1764896602939,-257.0,0.00012047,2]
[396258824,1764896604000,-151.00865929,0.00012047,2]
[396258825,1764896606107,-245.74248661,0.00012047,2]
[396258826,1764896608238,-300.0,0.00012047,2]
[396258827,1764896609764,-235.67676033,0.00012047,2]
[396258828,1764896611734,-175.08944416,0.00012047,2]
[396258829,1764896613915,-209.67789737,0.00012047,2]
[396258830,1764896613942,-37.84316365,0.00012169,2]
[396258831,1764896616511,-230.97719495,0.00012169,2]
[396258832,1764896618075,-300.01183225,0.00012169,2]
[396258833,1764896620124,-162.62681283,0.00012168,2]
[396258834,1764896625130,-181.20625911,0.00012168,2]
[396258835,1764896627239,-156.16692806,0.00012168,2]
[396258836,1764896627261,-10.97027338,0.00012168,2]
[396258837,1764896629284,-175.61955077,0.00012168,2]
[396258838,1764896631897,-126.56108581,0.00012168,2]
[396258839,1764896631924,-127.97236475,0.00012169,2]
[396258840,1764896634606,-199.30508971,0.00012169,2]
[396258841,1764896638240,-258.32707987,0.00012168,2]
[396258842,1764896639457,-241.67292013,0.00012168,2]
[396258843,1764896639481,-110.56295038,0.00012168,2]
[396258844,1764896641554,-197.41542575,0.00012168,2]
[396258845,1764896643033,-132.17365613,0.00012168,2]
[396258846,1764896643057,-170.11603679,0.00012168,2]
[396258847,1764896645132,-263.59441428,0.00012168,2]
[396258848,1764896647630,-66.28954893,0.00012168,2]
[396258849,1764896647650,-114.69903268,0.00012168,2]
[396258850,1764896649263,-178.50122537,0.00012168,2]
[396258851,1764896651306,-206.79974195,0.00012168,2]
[396258852,1764896651328,-93.20025805,0.00012168,2]
[396258853,1764896654057,-290.97367503,0.00012168,2]
[396258854,1764896655820,-115.82606692,0.00012168,2]
[396258855,1764896655843,-216.55937088,0.00012168,2]
[396258856,1764896657880,-283.44062912,0.00012168,2]
[396258857,1764896657904,-43.60631181,0.00012168,2]
[396258860,1764896662272,-281.43535408,0.00012168,2]
[396258861,1764896666157,-174.95833411,0.00012168,2]
[396258862,1764896666182,-59.22235802,0.00012169,2]
[396258863,1764896667749,-164.75396792,0.00012169,2]
[396258864,1764896669877,-155.76528857,0.00012169,2]
[396258865,1764896672546,-155.76528857,0.00012169,2]
[396258866,1764896674061,-467.93,0.00012169,2]
[396258867,1764896675577,-324.43496637,0.00012169,2]
[396258868,1764896680004,-500.0,0.00012169,2]
[396258869,1764896682509,-306.77229957,0.00012169,2]
[396258870,1764896683741,-246.90738198,0.00012169,2]
[396258871,1764896687335,-155.76528857,0.00012047,2]
[396258872,1764896687360,-321.69747165,0.00012169,2]
[396258873,1764896689032,-180.15932349,0.00012169,2]
[396258874,1764896694780,-155.76528857,0.00012047,2]
[396258875,1764896694804,-338.69679359,0.00012169,2]
[396258876,1764896695892,-742.92779881,0.00012169,2]
[396258877,1764896698623,-212.76194058,0.00012169,2]
[396258878,1764896700175,-175.56503363,0.00012169,2]
[396258879,1764896751967,-560.77318963,0.00012169,2]
[396258880,1764896754025,-415.47993631,0.00012169,2]
[396258881,1764896757279,-166.76210516,0.00012169,2]
[396258882,1764896761363,-348.07853279,0.00012169,2]
[396258883,1764896763527,-187.75871626,0.00012169,2]
[396258884,1764896765129,-198.7429994,0.00012169,2]
[396258887,1764897032367,-249.0,0.00012069,2]
[396258888,1764897032377,-324592.31735619,0.00012069,2]
[396258933,1764897038466,-1444.11537336,0.00011994,2]
[396258934,1764897038526,-1019.69227187,0.00011994,2]
[396258935,1764897038535,-175.43974218,0.00012068,2]
[396258936,1764897038545,-500.0,0.00012068,2]
[396258937,1764897038553,-499.66723603,0.00012068,2]
[396258938,1764897038563,-382.23911469,0.00012068,2]
[396258939,1764897038574,-565407.68264381,0.00012069,2]
[396258940,1764897038584,-494.26190372,0.00012094,2]
[396258941,1764897038593,-150.0,0.00012194,2]
[396258942,1764897038603,-1000.0,0.00012268,2]
[396258943,1764897038612,-522.8705465,0.00012268,2]
[396258944,1764897038623,-300.0,0.00012411,2]
[396258945,1764897038632,-300.0,0.00012411,2]
[396258946,1764897038642,-300.0,0.00012411,2]
[396258947,1764897038651,-300.0,0.00012411,2]
[396258948,1764897038661,-300.0,0.00012411,2]
[396258949,1764897038670,-300.0,0.00012411,2]
[396258950,1764897038680,-300.0,0.00012411,2]
[396258951,1764897038690,-300.0,0.00012411,2]
[396258952,1764897038699,-300.0,0.00012411,2]
[396258953,1764897038709,-300.0,0.00012411,2]
[396258954,1764897038718,-300.0,0.00012411,2]
[396258955,1764897038727,-300.0,0.00012411,2]
[396258956,1764897038737,-300.0,0.00012411,2]
[396258957,1764897038746,-300.0,0.00012411,2]
[396258958,1764897038756,-300.0,0.00012411,2]
[396258959,1764897038767,-600.0,0.00012411,2]
[396258960,1764897038776,-1461.39652457,0.000129,2]
[396258961,1764897038786,-501.7254418,0.00013273,2]
[396258962,1764897038795,-500.0,0.00013273,2]
[396258963,1764897038804,-500.0,0.00013273,2]
[396258964,1764897038813,-500.0,0.00013273,2]
[396258965,1764897038823,-500.0,0.00013273,2]
[396258966,1764897038832,-500.0,0.00013273,2]
[396258967,1764897038841,-500.0,0.00013273,2]
[396258968,1764897038850,-258.86741491,0.00013273,2]
[396258969,1764897038860,-500.0,0.00013273,2]
[396258970,1764897038869,-500.0,0.00013273,2]
[396258971,1764897038879,-500.0,0.00013273,2]
[396258972,1764897038889,-500.0,0.00013273,2]
[396258973,1764897038899,-522.4365491,0.00013273,2]
[396258974,1764897038908,-500.0,0.00013273,2]
[396258975,1764897038918,-720.0,0.00013653,2]
[396258976,1764897038927,-300.0,0.00013673,2]
[396258977,1764897038937,-500.0,0.00013698,2]
[396258978,1764897038949,-500.0,0.00013698,2]
[396258979,1764897038959,-500.0,0.00013698,2]
[396258980,1764897038968,-500.0,0.00013698,2]
[396258981,1764897038978,-349.24,0.00013698,2]
[396258982,1764897038987,-500.0,0.00013698,2]
[396258983,1764897038997,-500.0,0.00013698,2]
[396258984,1764897039008,-500.0,0.00013698,2]
[396258985,1764897039018,-500.0,0.00013698,2]
[396258986,1764897039028,-500.0,0.00013698,2]
[396258987,1764897039038,-500.0,0.00013698,2]
[396258988,1764897039047,-500.0,0.00013698,2]
[396258989,1764897039057,-500.0,0.00013698,2]
[396258990,1764897039066,-436.48,0.00013698,2]
[396258991,1764897039076,-500.0,0.00013698,2]
[396258992,1764897039086,-500.0,0.00013698,2]
[396258993,1764897039095,-500.0,0.00013698,2]
[396258994,1764897039104,-500.0,0.00013698,2]
[396258995,1764897039113,-500.0,0.00013698,2]
[396258996,1764897039123,-500.0,0.00013698,2]
[396258997,1764897039132,-393.15,0.00013698,2]
[396258998,1764897039142,-429.62049354,0.00013698,2]
[396258999,1764897039151,-500.0,0.00013698,2]
[396259000,1764897039160,-500.0,0.00013698,2]
[396259001,1764897039170,-500.0,0.00013698,2]
[396259002,1764897039179,-1000.0,0.00013699,2]
[396259003,1764897039188,-500.0,0.00013699,2]
[396259004,1764897039197,-500.48268587,0.00013699,2]
[396259005,1764897039207,-500.0,0.00013699,2]
[396259006,1764897039216,-500.0,0.00013699,2]
[396259007,1764897039225,-500.0,0.00013699,2]
[396259008,1764897039234,-500.0,0.00013699,2]
[396259009,1764897039244,-500.0,0.00013699,2]
[396259010,1764897039253,-500.25938351,0.00013699,2]
[396259011,1764897039263,-1000.0,0.00013821,2]
[396259012,1764897039273,-1000.0,0.00013821,2]
[396259013,1764897039282,-1000.0,0.00013821,2]
[396259014,1764897039292,-1000.0,0.00013821,2]
[396259015,1764897039301,-1000.0,0.00013821,2]
[396259016,1764897039309,-725.89776009,0.00013994,2]
[396259017,1764897039318,-177.0,0.00014194,2]
[396259018,1764897039327,-274.74102151,0.00014247,2]
[396259019,1764897039337,-1000.0,0.00014247,2]
[396259020,1764897039346,-1000.27186847,0.00014247,2]
[396259021,1764897039355,-500.0,0.00014368,2]
[396259022,1764897039364,-500.0,0.00014368,2]
[396259023,1764897039374,-500.0,0.00014368,2]
[396259024,1764897039383,-500.0,0.00014368,2]
[396259025,1764897039392,-500.0,0.00014368,2]
[396259026,1764897039402,-320.53969748,0.00014371,2]
[396259027,1764897039411,-864.0,0.00015018,2]
[396259028,1764897039425,-273.841012,0.00015068,2]
[396259029,1764897039434,-725.89776009,0.00015502,2]
[396259030,1764897039443,-1461.3965245,0.00015606,2]
[396259031,1764897039452,-726.59725151,0.00015701,2]
[396259032,1764897039463,-176.80334312,0.00015701,2]